bitfinex-derivatives/quotes_SOLF0:USTF0_20260222
["timestamp","ask_amount","ask_price","bid_price","bid_amount"]
[1771803081139,7.77611324,82.653,82.61,2.6227149]
[1771803081337,7.77611324,82.653,82.611,7.50976932]
[1771803084338,18.66941324,82.653,82.611,7.50976932]
[1771803085939,7.77611324,82.653,82.611,7.50976932]
[1771803086143,7.77611324,82.662,82.62,10.13248422]
[1771803087542,7.77611324,82.662,82.62,7.50976932]
[1771803097252,7.77611324,82.66,82.61,2.62396763]
[1771803097555,7.77611324,82.659,82.61,2.62396763]
[1771803097759,7.77611324,82.659,82.61,10.13373695]
[1771803097958,7.77611324,82.659,82.611,7.50976932]
[1771803102064,2.62396763,82.64,82.596,7.89567442]
[1771803102257,7.28467925,82.639,82.596,7.89567442]
[1771803109764,7.28467925,82.639,82.578,14.99135346]
[1771803109765,2.62396763,82.63,82.584,10.9022]
[1771803109965,7.28467925,82.629,82.584,10.9022]
[1771803110473,7.28467925,82.629,82.584,18.79787442]
[1771803114671,7.28467925,82.629,82.591,18.79707442]
[1771803117375,7.28467925,82.629,82.591,7.89567442]
[1771803117975,7.28467925,82.629,82.559,333.50942941]
[1771803117976,2.62396763,82.61,82.568,7.89567442]
[1771803118175,2.62396763,82.6,82.568,7.89567442]
[1771803118379,9.90864688,82.6,82.559,318.51807595]
[1771803118878,7.28467925,82.6,82.56,7.89567442]
[1771803121378,7.28467925,82.579,82.535,7.89567442]
[1771803121680,7.28467925,82.602,82.55,2.62396763]
[1771803121882,2.62396763,82.6,82.551,7.89567442]
[1771803122078,7.28467925,82.599,82.551,7.89567442]
[1771803122578,7.28467925,82.611,82.561,7.89567442]
[1771803124675,7.28467925,82.609,82.561,7.89567442]
[1771803131681,7.77137027,82.632,82.58,2.62396763]
[1771803131887,2.62396763,82.64,82.591,7.77511601]
[1771803132485,7.77137027,82.643,82.591,7.77511601]
[1771803133486,18.66597027,82.643,82.591,18.67651601]
[1771803133685,7.77137027,82.643,82.592,7.77511601]
[1771803134983,7.77137027,82.659,82.611,7.77511601]
[1771803136182,7.77137027,82.659,82.6,2.62396763]
[1771803136183,7.58999908,82.684,82.621,7.72111698]
[1771803136383,10.21396671,82.67,82.621,7.72111698]
[1771803136684,10.21396671,82.67,82.623,7.72111698]
[1771803136685,7.58999908,82.67,82.623,7.72111698]
[1771803137782,7.58999908,82.67,82.626,7.72111698]
[1771803140685,7.58999908,82.679,82.631,7.72111698]
[1771803147309,7.58999908,82.699,82.641,7.72111698]
[1771803147812,7.58999908,82.699,82.651,7.72111698]
[1771803148007,10.8875,82.697,82.651,7.72111698]
[1771803148209,7.58999908,82.689,82.608,7.72111698]
[1771803148412,7.58999908,82.689,82.631,7.72111698]
[1771803148607,11.01224903,82.737,82.607,36.31]
[1771803148608,2.62396763,82.7,82.649,7.72111698]
[1771803148806,7.58999908,82.702,82.651,7.72111698]
[1771803149314,7.58999908,82.699,82.651,7.72111698]
[1771803150708,7.58999908,82.689,82.651,7.72111698]
[1771803150913,7.58999908,82.689,82.639,7.72111698]
[1771803151303,7.58999908,82.689,82.644,7.72111698]
[1771803151508,263.20770057,82.741,82.644,7.72111698]
[1771803151509,2.62396763,82.68,82.644,7.72111698]
[1771803151708,7.58999908,82.687,82.644,7.72111698]
[1771803152307,18.47879908,82.687,82.632,7.72111698]
[1771803152513,7.58999908,82.659,82.616,7.72111698]
[1771803153808,7.58999908,82.659,82.618,7.72111698]
[1771803154716,7.58999908,82.659,82.62,7.72111698]
[1771803156418,2.62396763,82.67,82.624,7.72111698]
[1771803156616,7.58999908,82.669,82.624,7.72111698]
[1771803157219,7.58999908,82.669,82.625,18.61791698]
[1771803157415,7.58999908,82.669,82.626,7.72111698]
[1771803161923,7.58999908,82.669,82.628,18.72496043]
[1771803162918,7.58999908,82.669,82.62,2.62343543]
[1771803163118,7.88438159,82.659,82.616,7.82856043]
[1771803163319,7.88438159,82.649,82.601,7.82856043]
[1771803163518,7.88438159,82.649,82.604,18.72816043]
[1771803163821,7.88438159,82.649,82.605,7.82856043]
[1771803164212,459.74683222,82.712,82.611,7.82856043]
[1771803164213,7.88438159,82.671,82.611,7.82856043]
[1771803164416,10.50781702,82.66,82.611,7.82856043]
[1771803164615,7.88438159,82.659,82.611,7.82856043]
[1771803165415,7.88438159,82.659,82.56,36.31]
[1771803165416,2.62343543,82.64,82.599,7.82856043]
[1771803165621,7.88438159,82.639,82.589,10.9016]
[1771803165824,7.88438159,82.639,82.59,7.82856043]
[1771803166420,7.88438159,82.629,82.59,7.82856043]
[1771803168329,7.88438159,82.629,82.592,10.9012]
[1771803170926,7.88438159,82.629,82.594,18.72946043]
[1771803174435,7.88438159,82.629,82.595,7.82856043]
[1771803175937,7.88438159,82.629,82.584,7.82856043]
[1771803176235,7.88438159,82.629,82.525,169.7127]
[1771803176236,7.88438159,82.629,82.591,7.82856043]
[1771803177740,7.88438159,82.629,82.595,7.82856043]
[1771803179035,7.88438159,82.629,82.597,7.82856043]
[1771803179236,7.88438159,82.665,82.601,7.82856043]
[1771803179438,10.50781702,82.66,82.611,7.82856043]
[1771803179636,7.88438159,82.659,82.611,7.82856043]
[1771803180742,7.88438159,82.659,82.62,7.82856043]
[1771803181834,2.62343543,82.67,82.629,7.82856043]
[1771803182038,7.88438159,82.672,82.631,7.82856043]
[1771803182833,7.88438159,82.672,82.631,18.72466043]
[1771803183434,7.88438159,82.669,82.621,10.8974]
[1771803183635,7.88438159,82.659,82.607,7.82856043]
[1771803184247,7.88438159,82.659,82.612,10.8986]
[1771803184446,7.88438159,82.659,82.612,18.72716043]
[1771803184647,7.88438159,82.659,82.613,7.82856043]
[1771803185748,7.88438159,82.659,82.614,10.8983]
[1771803188252,7.88438159,82.659,82.614,18.72686043]
[1771803191452,7.88438159,82.659,82.62,18.43497286]
[1771803193451,7.57969807,82.669,82.627,7.53747286]
[1771803200947,7.57969807,82.669,82.64,2.62343543]
[1771803201147,7.70455491,82.69,82.641,7.51598686]
[1771803202151,7.70455491,82.687,82.641,7.51598686]
[1771803202554,7.70455491,82.679,82.641,7.51598686]
[1771803205149,7.70455491,82.679,82.643,7.51598686]
[1771803206150,7.70455491,82.689,82.643,7.51598686]
[1771803207252,7.70455491,82.689,82.644,10.8943]
[1771803207452,7.70455491,82.689,82.645,7.51598686]
[1771803207750,474.92652844,82.698,82.651,7.51598686]
[1771803207751,464.03912844,82.698,82.651,7.51598686]
[1771803207947,464.03912844,82.698,82.655,7.51598686]
[1771803208347,471.74368335,82.698,82.655,7.51598686]
[1771803208553,7.70455491,82.697,82.655,7.51598686]
[1771803210655,7.70455491,82.697,82.656,18.40878686]
[1771803211357,7.70455491,82.697,82.657,7.51598686]
[1771803212255,464.03912844,82.698,82.646,10.894]
[1771803212256,2.62343543,82.68,82.646,10.894]
[1771803212452,10.32799034,82.67,82.633,7.51598686]
[1771803213760,10.32799034,82.67,82.634,10.8956]
[1771803217363,10.32781189,82.67,82.634,10.8956]
[1771803219468,7.54803342,82.669,82.634,10.8956]
[1771803228573,7.54803342,82.669,82.6,58.8181377]
[1771803228574,7.54803342,82.669,82.624,10.8969]
[1771803228774,7.54803342,82.669,82.624,18.19533396]
[1771803229075,7.54803342,82.669,82.625,7.29843396]
[1771803229670,7.54803342,82.669,82.627,10.8966]
[1771803233369,7.54803342,82.669,82.628,7.29843396]
[1771803236474,7.54803342,82.669,82.631,7.29843396]
[1771803236672,2.62325698,82.67,82.631,7.29843396]
[1771803236673,7.54803342,82.689,82.64,2.62325698]
[1771803236872,7.54803342,82.689,82.641,7.29843396]
[1771803237172,464.03912844,82.698,82.651,7.29843396]
[1771803237379,7.54803342,82.697,82.651,7.29843396]
[1771803238775,7.54803342,82.697,82.652,7.29843396]
[1771803241377,7.54803342,82.689,82.643,7.29843396]
[1771803247881,7.54803342,82.689,82.654,10.8931]
[1771803248088,2.62325698,82.72,82.671,7.29843396]
[1771803248280,7.62222216,82.739,82.702,7.05451456]
[1771803249887,7.62222216,82.739,82.703,17.94101456]
[1771803250988,7.62222216,82.739,82.704,7.05451456]
[1771803251290,2.62325698,82.75,82.704,7.05451456]
[1771803252286,7.62222216,82.749,82.704,7.05451456]
[1771803252983,7.62222216,82.749,82.708,7.05451456]
[1771803253686,7.62222216,82.749,82.71,7.05451456]
[1771803255288,7.62222216,82.759,82.71,7.05451456]
[1771803257790,2.62325698,82.75,82.71,7.05451456]
[1771803259789,7.4305168,82.769,82.721,7.07517735]
[1771803260888,2.62325698,82.76,82.723,7.07517735]
[1771803261992,7.4305168,82.769,82.723,7.07517735]
[1771803262886,7.4305168,82.769,82.726,7.07517735]
[1771803263689,7.4305168,82.769,82.727,10.8834]
[1771803263896,7.4305168,82.769,82.728,7.07517735]
[1771803264099,2.62325698,82.74,82.674,7.07517735]
[1771803264397,2.62325698,82.72,82.674,7.07517735]
[1771803265397,7.4305168,82.729,82.674,7.07517735]
[1771803265796,7.4305168,82.729,82.686,7.07517735]
[1771803266595,7.4305168,82.729,82.693,10.8879]
[1771803267395,7.4305168,82.729,82.686,7.07517735]
[1771803267594,2.62325698,82.72,82.686,7.07517735]
[1771803268700,7.4305168,82.729,82.686,7.07517735]
[1771803272896,7.4305168,82.699,82.641,7.07517735]
[1771803273103,7.4305168,82.689,82.641,7.07517735]
[1771803273301,7.4305168,82.679,82.641,7.07517735]
[1771803275402,10.885,82.716,82.65,7.07517735]
[1771803275604,2.62325698,82.7,82.651,7.07517735]
[1771803275798,2.62325698,82.71,82.651,7.07517735]
[1771803276100,2.62325698,82.7,82.651,7.07517735]
[1771803276705,2.62325698,82.7,82.653,10.8931]
[1771803277201,2.62325698,82.7,82.651,7.07517735]
[1771803277406,7.4305168,82.689,82.639,17.97017735]
[1771803277605,7.4305168,82.689,82.64,7.07517735]
[1771803279205,7.4305168,82.689,82.645,7.73473115]
[1771803279404,7.4305168,82.689,82.651,7.73473115]
[1771803281608,2.62187503,82.7,82.651,7.73473115]
[1771803281802,9.82131038,82.7,82.651,7.73473115]
[1771803282105,7.19943535,82.699,82.651,7.73473115]
[1771803283507,2.62187503,82.71,82.661,7.73473115]
[1771803283707,9.82131038,82.71,82.661,7.73473115]
[1771803284012,7.19943535,82.709,82.661,7.73473115]
[1771803284808,7.19943535,82.709,82.663,18.62663115]
[1771803285616,2.62187503,82.7,82.663,18.62663115]
[1771803287708,7.19943535,82.699,82.653,10.8931]
[1771803287912,7.19943535,82.699,82.654,7.73473115]
[1771803297832,7.19943535,82.689,82.641,7.73473115]
[1771803298730,2.62187503,82.68,82.642,18.62943115]
[1771803298930,9.82131038,82.68,82.642,18.62943115]
[1771803301129,7.19943535,82.679,82.642,18.62943115]
[1771803301330,7.19943535,82.679,82.642,7.73473115]
[1771803303735,7.19943535,82.669,82.623,7.73473115]
[1771803303933,7.19943535,82.659,82.604,7.73473115]
[1771803304137,7.19943535,82.659,82.611,7.73473115]
[1771803305938,7.19943535,82.659,82.614,7.73473115]
[1771803306729,7.19943535,82.659,82.616,7.73473115]
[1771803315037,7.19943535,82.659,82.584,36.32]
[1771803315038,7.37398228,82.68,82.64,2.62187503]
[1771803315239,7.37398228,82.699,82.65,2.62187503]
[1771803315443,7.37398228,82.699,82.66,2.62187503]
[1771803315642,7.37398228,82.699,82.661,7.40590686]
[1771803315944,7.37398228,82.699,82.662,10.8919]
[1771803316147,2.62187503,82.72,82.671,7.38239467]
[1771803316343,7.29899873,82.721,82.671,7.38239467]
[1771803316844,7.29899873,82.721,82.682,10.8893]
[1771803317042,7.29899873,82.735,82.691,7.38239467]
[1771803317545,7.29899873,82.735,82.68,2.62187503]
[1771803317747,7.29899873,82.735,82.681,7.38239467]
[1771803318139,7.29899873,82.735,82.622,29.82346416]
[1771803318140,7.29899873,82.759,82.711,7.38239467]
[1771803319238,7.29899873,82.759,82.72,2.62187503]
[1771803319546,7.29899873,82.771,82.73,2.62187503]
[1771803319746,7.29899873,82.771,82.731,7.38239467]
[1771803320242,7.29899873,82.771,82.74,2.62187503]
[1771803321437,7.29899873,82.771,82.731,7.38239467]
[1771803322036,7.29899873,82.789,82.731,7.38239467]
[1771803322242,7.29899873,82.789,82.74,2.62187503]
[1771803323248,7.29899873,82.789,82.741,7.38239467]
[1771803324143,7.29899873,82.789,82.75,2.62187503]
[1771803324346,7.29899873,82.809,82.76,2.62187503]
[1771803324853,7.29899873,82.809,82.76,10.0042697]
[1771803325445,7.29899873,82.818,82.771,7.38239467]
[1771803325646,7.29899873,82.818,82.78,10.0042697]
[1771803327650,7.29899873,82.845,82.8,2.62187503]
[1771803327845,7.29899873,82.845,82.801,7.38239467]
[1771803328348,2.62187503,82.85,82.801,7.38239467]
[1771803329951,7.29899873,82.858,82.803,7.38239467]
[1771803330347,7.29899873,82.873,82.821,7.38239467]
[1771803330550,7.29899873,82.873,82.83,10.0042697]
[1771803330947,7.29899873,82.873,82.831,7.38239467]
[1771803332549,7.29899873,82.886,82.841,7.38239467]
[1771803334148,7.29899873,82.886,82.715,169.322]
[1771803334149,7.29899873,82.886,82.801,7.38239467]
[1771803334846,7.29899873,82.885,82.818,7.38239467]
[1771803335449,7.29899873,82.88,82.818,7.38239467]
[1771803336049,7.29899873,82.869,82.818,7.38239467]
[1771803336246,7.29899873,82.869,82.804,7.38239467]
[1771803337751,7.29899873,82.867,82.807,7.38239467]
[1771803341948,7.29899873,82.867,82.812,7.78054038]
[1771803342145,7.5373265,82.879,82.812,7.78054038]
[1771803343657,7.5373265,82.879,82.821,10.8711]
[1771803343848,7.5373265,82.879,82.822,7.78054038]
[1771803344949,7.5373265,82.879,82.824,7.78054038]
[1771803346859,7.5373265,82.879,82.827,7.78054038]
[1771803348163,7.5373265,82.879,82.838,7.78054038]
[1771803349157,7.5373265,82.879,82.84,7.78054038]
[1771803350757,7.5373265,82.879,82.842,10.8683]
[1771803351958,36.32,82.948,82.81,6.99466159]
[1771803351959,7.5373265,82.93,82.851,7.78054038]
[1771803352160,7.5373265,82.909,82.851,7.78054038]
[1771803353368,7.5373265,82.894,82.833,7.78054038]
[1771803354661,7.5373265,82.892,82.835,10.8691]
[1771803355263,2.61026544,82.88,82.835,18.64964038]
[1771803355670,7.5373265,82.892,82.835,18.64964038]
[1771803355864,2.61026544,82.88,82.835,18.64964038]
[1771803356064,2.61026544,82.88,82.823,18.65124038]
[1771803356065,7.5373265,82.879,82.823,18.65124038]
[1771803356259,2.61026544,82.87,82.824,7.78054038]
[1771803357765,2.61026544,82.87,82.827,7.78054038]
[1771803358863,2.61026544,82.84,82.798,7.78054038]
[1771803359068,10.14759194,82.84,82.798,7.78054038]
[1771803359369,2.61026544,82.83,82.798,7.78054038]
[1771803360862,7.5373265,82.839,82.798,7.78054038]
[1771803365267,7.5373265,82.839,82.785,7.78054038]
[1771803365470,7.5373265,82.829,82.785,7.78054038]
[1771803365665,2.61026544,82.84,82.785,7.78054038]
[1771803365869,7.5373265,82.842,82.793,7.78054038]
[1771803370672,2.61026544,82.83,82.793,7.78054038]
[1771803370871,7.6910889,82.829,82.793,7.78054038]
[1771803376072,7.6910889,82.829,82.781,7.63514964]
[1771803378677,7.17904758,82.819,82.772,7.63514964]
[1771803378975,7.17904758,82.844,82.791,7.63514964]
[1771803379677,7.17904758,82.844,82.8,2.61026544]
[1771803380766,7.17904758,82.843,82.8,2.61026544]
[1771803381872,7.17904758,82.841,82.8,2.61026544]
[1771803382778,7.17904758,82.841,82.791,7.63514964]
[1771803385983,7.17904758,82.839,82.791,7.63514964]
[1771803394293,7.17904758,82.834,82.791,7.63514964]
[1771803394595,7.17904758,82.819,82.772,10.8775]
[1771803396393,7.17904758,82.809,82.759,7.63514964]
[1771803396588,2.61026544,82.8,82.759,7.63514964]
[1771803396792,7.17904758,82.799,82.759,7.63514964]
[1771803399298,10.8717,82.817,82.733,194.7806426]
[1771803399299,7.44485346,82.813,82.761,7.29000284]
[1771803400803,7.44485346,82.813,82.763,7.29000284]
[1771803401002,10.0551189,82.81,82.763,7.29000284]
[1771803401205,10.05927526,82.81,82.763,7.29000284]
[1771803403306,7.44485346,82.809,82.763,7.29000284]
[1771803407006,7.44485346,82.827,82.781,7.29000284]
[1771803407205,7.44485346,82.839,82.781,7.29000284]
[1771803408000,2.6144218,82.83,82.781,7.29000284]
[1771803408202,7.44485346,82.829,82.781,7.29000284]
[1771803408806,7.44485346,82.829,82.788,10.8754]
[1771803411611,7.44485346,82.829,82.79,20.77952464]
[1771803412108,7.44485346,82.829,82.791,7.29000284]
[1771803412412,10.05927526,82.84,82.791,7.29000284]
[1771803413210,7.44485346,82.84,82.791,7.29000284]
[1771803413705,7.44485346,82.84,82.793,7.29000284]
[1771803419417,10.05927526,82.84,82.793,7.29000284]
[1771803420417,13.4817218,82.85,82.801,7.29000284]
[1771803420815,7.44485346,82.849,82.801,7.29000284]
[1771803422912,7.44485346,82.849,82.807,7.29000284]
[1771803423118,7.44485346,82.849,82.771,22.4981377]
[1771803423119,2.6144218,82.87,82.82,2.6144218]
[1771803423314,2.6144218,82.87,82.821,7.29000284]
[1771803424116,7.44485346,82.868,82.821,7.29000284]
[1771803428415,2.6144218,82.86,82.821,7.29000284]
[1771803429720,7.44485346,82.868,82.821,7.29000284]
[1771803435429,7.44485346,82.868,82.823,7.29116983]
[1771803443631,7.44485346,82.868,82.826,7.3251333]
[1771803443832,7.70672216,82.901,82.851,7.3251333]
[1771803444032,7.70672216,82.901,82.86,2.6144218]
[1771803444336,7.70672216,82.929,82.875,7.3251333]
[1771803444833,2.6144218,82.92,82.875,7.3251333]
[1771803445037,12.07722473,82.933,82.832,463.00054005]
[1771803445038,10.32114396,82.89,82.841,7.3251333]
[1771803446741,10.32114396,82.89,82.845,7.3251333]
[1771803447043,7.70672216,82.901,82.851,7.3251333]
[1771803447242,7.70672216,82.901,82.86,2.6144218]
[1771803447443,7.70672216,82.901,82.861,7.3251333]
[1771803450542,186.73219696,82.938,82.861,7.3251333]
[1771803450543,7.70672216,82.913,82.87,2.6144218]
[1771803450748,7.70672216,82.913,82.871,7.3251333]
[1771803452947,7.70672216,82.909,82.86,9.9395551]
[1771803453144,7.70672216,82.899,82.85,9.9395551]
[1771803453350,7.70672216,82.899,82.851,7.3251333]
[1771803454155,7.70672216,82.899,82.86,2.6144218]
[1771803454454,7.70672216,82.899,82.861,7.3251333]
[1771803455247,7.70672216,82.899,82.86,2.6144218]
[1771803455455,7.70672216,82.899,82.85,9.9395551]
[1771803456256,7.70672216,82.899,82.851,7.3251333]
[1771803456554,7.70672216,82.919,82.87,9.9395551]
[1771803457358,7.70672216,82.917,82.87,9.9395551]
[1771803458962,7.70672216,82.917,82.87,7.3251333]
[1771803459359,7.67054332,82.899,82.868,7.35272065]
[1771803461664,7.67054332,82.899,82.85,2.6144218]
[1771803461962,7.67054332,82.899,82.852,10.8669]
[1771803462160,7.67054332,82.899,82.86,2.6144218]
[1771803462366,7.67054332,82.899,82.86,9.96714245]
[1771803462564,7.67054332,82.899,82.861,7.35272065]
[1771803468068,10.27856882,82.91,82.861,7.35272065]
[1771803469670,7.67054332,82.91,82.865,7.35272065]
[1771803470674,7.67054332,82.91,82.866,10.8651]
[1771803471162,7.67054332,82.909,82.866,10.8651]
[1771803475372,2.6080255,82.9,82.857,10.8663]
[1771803475573,7.67054332,82.899,82.857,10.8663]
[1771803475772,7.67054332,82.899,82.858,7.35272065]
[1771803476775,7.67054332,82.899,82.861,7.35272065]
[1771803478877,7.67054332,82.896,82.848,7.35272065]
[1771803479277,7.67054332,82.889,82.848,7.35272065]
[1771803479470,11.06238363,82.93,82.826,14.79984332]
[1771803479471,2.6080255,82.87,82.826,14.79984332]
[1771803479672,7.67054332,82.849,82.811,7.35272065]
[1771803480277,2.6080255,82.84,82.811,7.35272065]
[1771803480981,2.6080255,82.84,82.792,10.8749]
[1771803480982,7.67054332,82.839,82.793,7.35272065]
[1771803481574,2.6080255,82.83,82.793,7.35272065]
[1771803483383,7.67054332,82.839,82.793,7.35272065]
[1771803488889,7.08936617,82.829,82.781,7.36208157]
[1771803493891,7.08936617,82.819,82.781,7.36208157]
[1771803500995,7.08936617,82.819,82.774,10.8772]
[1771803501490,7.08936617,82.819,82.775,7.384426]
[1771803508101,7.08936617,82.819,82.733,21.7652]
[1771803508102,7.45071161,82.815,82.76,2.6080255]
[1771803508306,7.45071161,82.809,82.761,7.384426]
[1771803509804,10.8734,82.804,82.761,7.384426]
[1771803510310,18.32411161,82.804,82.761,7.384426]
[1771803510509,7.45071161,82.803,82.761,7.384426]
[1771803511613,7.45071161,82.799,82.761,7.384426]
[1771803512314,18.32321161,82.811,82.761,7.384426]
[1771803513211,7.45071161,82.823,82.781,7.384426]
[1771803516010,7.45071161,82.823,82.78,2.6080255]
[1771803516011,7.45071161,82.817,82.77,9.9924515]
[1771803516214,7.45071161,82.817,82.761,10.879]
[1771803516215,2.6080255,82.81,82.771,7.384426]
[1771803516515,7.45071161,82.809,82.771,7.384426]
[1771803528021,2.61484315,82.8,82.762,7.16282952]
[1771803528216,7.12893389,82.799,82.762,7.16282952]
[1771803528417,10.876,82.784,82.752,7.16282952]
[1771803528629,9.74377704,82.78,82.731,7.16282952]
[1771803529725,9.74377704,82.78,82.732,7.16282952]
[1771803530320,7.12893389,82.78,82.734,7.16282952]
[1771803530520,7.12893389,82.78,82.708,756.17795636]
[1771803530521,10.876,82.784,82.741,7.16282952]
[1771803538731,7.12893389,82.791,82.741,7.16282952]
[1771803541131,9.74377704,82.79,82.741,7.16282952]
[1771803541333,7.12893389,82.789,82.741,7.16282952]
[1771803544136,7.12893389,82.787,82.741,7.16282952]
[1771803544336,7.12893389,82.769,82.71,2.61484315]
[1771803544636,2.61484315,82.77,82.71,2.61484315]
[1771803544637,7.12893389,82.759,82.719,7.16282952]
[1771803548341,6.93252922,82.749,82.708,763.16643048]
[1771803548541,6.93252922,82.749,82.709,6.98847412]
[1771803549341,6.93252922,82.763,82.72,2.61484315]
[1771803549644,6.93252922,82.763,82.721,6.98847412]
[1771803552540,6.93252922,82.774,82.731,6.98847412]
[1771803555646,6.93252922,82.785,82.733,6.98847412]
[1771803556547,7.11257236,82.779,82.733,6.98847412]
[1771803557946,7.11257236,82.779,82.735,7.27698253]
[1771803559344,2.61484315,82.79,82.741,7.27698253]
[1771803559550,7.11257236,82.792,82.741,7.27698253]
[1771803559853,7.11257236,82.792,82.75,2.61484315]
[1771803560151,7.11257236,82.792,82.751,7.27698253]
[1771803560351,7.11257236,82.789,82.751,7.27698253]
[1771803561048,7.11257236,82.769,82.722,18.16098253]
[1771803561252,7.11257236,82.769,82.723,7.27698253]
[1771803570253,2.61484315,82.78,82.73,2.61484315]
[1771803570459,2.61484315,82.78,82.667,29.90870875]
[1771803570460,7.11257236,82.792,82.741,7.27698253]
[1771803570659,7.11257236,82.792,82.751,7.27698253]
[1771803574760,7.11257236,82.802,82.756,7.27698253]
[1771803577762,7.11257236,82.799,82.756,7.27698253]
[1771803581460,7.11257236,82.799,82.755,10.8798]
[1771803581461,2.61484315,82.79,82.746,7.40250982]
[1771803581665,7.21604304,82.779,82.731,7.40250982]
[1771803583068,7.21604304,82.79,82.741,7.40250982]
[1771803583971,7.21604304,82.789,82.741,7.40250982]
[1771803584767,7.21604304,82.789,82.742,7.40250982]
[1771803590281,7.21604304,82.779,82.742,7.40250982]
[1771803606588,11.06238363,82.805,82.733,7.40250982]
[1771803606589,7.21604304,82.769,82.733,7.40250982]
[1771803606896,2.61590636,82.76,82.733,7.40250982]
[1771803607097,7.21604304,82.759,82.722,7.40250982]
[1771803609492,8.59662891,82.781,82.73,2.61590636]
[1771803609692,7.40357104,82.782,82.731,7.17046812]
[1771803610594,7.40357104,82.782,82.741,7.17046812]
[1771803613400,7.40357104,82.793,82.744,7.17046812]
[1771803614497,2.61590636,82.79,82.744,7.17046812]
[1771803621902,2.61590636,82.79,82.74,2.61590636]
[1771803621903,2.61590636,82.79,82.746,7.13839058]
[1771803623202,7.07224257,82.809,82.761,7.13839058]
[1771803623501,7.07224257,82.807,82.761,7.13839058]
[1771803623705,9.68814893,82.8,82.761,7.13839058]
[1771803627806,9.68814893,82.8,82.763,7.13839058]
[1771803628009,7.07224257,82.8,82.763,7.13839058]
[1771803628608,7.07224257,82.8,82.765,7.13839058]
[1771803630206,9.68814893,82.81,82.765,7.13839058]
[1771803630808,7.07224257,82.809,82.765,7.13839058]
[1771803640211,2.61590636,82.8,82.765,7.13839058]
[1771803640416,7.13789111,82.799,82.765,7.13839058]
[1771803643014,7.13789111,82.799,82.727,282.37351094]
[1771803643015,7.13789111,82.799,82.755,18.09089339]
[1771803643215,7.13789111,82.789,82.755,18.09089339]
[1771803645021,7.13789111,82.81,82.761,7.21119339]
[1771803646718,9.75379747,82.82,82.779,7.21119339]
[1771803647320,6.82701373,82.818,82.779,7.21119339]
[1771803647721,6.82701373,82.818,82.78,18.01860396]
[1771803648421,6.82701373,82.818,82.781,7.14210396]
[1771803653022,2.61381986,82.8,82.763,7.14210396]
[1771803653222,6.82701373,82.789,82.733,7.14210396]
[1771803653424,2.61381986,82.79,82.741,7.14210396]
[1771803653623,6.82701373,82.801,82.762,7.14210396]
[1771803654222,2.61381986,82.8,82.762,7.14210396]
[1771803654928,2.61381986,82.8,82.766,18.02030396]
[1771803655226,2.61381986,82.8,82.767,7.14210396]
[1771803656019,6.82701373,82.801,82.767,7.14210396]
[1771803656224,2.61381986,82.8,82.767,7.14210396]
[1771803658929,2.61381986,82.79,82.755,7.14210396]
[1771803659833,6.82701373,82.799,82.757,7.14210396]
[1771803664538,2.61381986,82.78,82.747,7.14210396]
[1771803664829,6.82701373,82.769,82.727,267.0174772]
[1771803665036,6.82701373,82.769,82.728,7.14210396]
[1771803665737,6.82701373,82.769,82.733,10.8826]
[1771803666128,6.82701373,82.769,82.733,18.02470396]
[1771803666330,9.44083359,82.78,82.735,10.8824]
[1771803666534,9.44083359,82.78,82.736,7.14210396]
[1771803666834,9.44083359,82.77,82.736,7.14210396]
[1771803667036,6.82701373,82.769,82.727,259.87537324]
[1771803667338,2.61381986,82.76,82.727,259.87537324]
[1771803667538,6.82701373,82.759,82.727,259.87537324]
[1771803668135,6.82701373,82.749,82.715,7.14210396]
[1771803668735,2.61381986,82.73,82.701,6.81407]
[1771803668940,2.61381986,82.73,82.69,6.81407]
[1771803669341,9.32037017,82.73,82.69,6.81407]
[1771803669638,6.70655031,82.729,82.69,6.81407]
[1771803669836,6.70655031,82.729,82.682,10.8893]
[1771803670333,6.70655031,82.729,82.682,17.70337]
[1771803670538,6.70655031,82.729,82.683,6.81407]
[1771803670741,2.61381986,82.7,82.64,6.81407]
[1771803670940,6.70655031,82.699,82.641,6.81407]
[1771803671136,6.70655031,82.699,82.651,6.81407]
[1771803672438,10.8848,82.717,82.661,6.81407]
[1771803672736,10.8848,82.717,82.671,6.81407]
[1771803675640,6.70655031,82.709,82.66,2.61381986]
[1771803675942,6.70655031,82.709,82.66,9.42788986]
[1771803676142,6.70655031,82.709,82.66,6.81407]
[1771803677237,6.70655031,82.709,82.65,2.61381986]
[1771803677238,2.61381986,82.72,82.67,2.61381986]
[1771803677442,2.61381986,82.72,82.671,7.32134709]
[1771803677839,7.35012694,82.719,82.671,7.32134709]
[1771803678644,7.35012694,82.709,82.671,7.32134709]
[1771803690251,2.61381986,82.73,82.681,7.32134709]
[1771803690959,2.61381986,82.73,82.683,7.32134709]
[1771803692561,7.35012694,82.729,82.683,7.32134709]
[1771803697655,2.10405393,82.771,82.672,7.32134709]
[1771803697656,7.35012694,82.719,82.672,7.32134709]
[1771803697861,2.61381986,82.71,82.672,7.32134709]
[1771803698468,7.35012694,82.719,82.672,7.32134709]
[1771803702159,6.87562283,82.711,82.672,7.32134709]